[Event "*** Titled Tuesday Blitz"]
[Site "Chess.com"]
[Date "2020.10.20"]
[Round "9"]
[White "GMaka"]
[Black "Mr_Sinigami"]
[Result "1-0"]
[WhiteElo "2382"]
[BlackElo "2491"]
[TimeControl "180+1"]
[EndTime "11:47:33 PDT"]
[Termination "GMaka won on time"]

1. d4 {[%clk 0:03:00.9]} 1... Nf6 {[%clk 0:02:58.1]} 2. Bg5 {[%clk 0:02:56.9]}
2... c5 {[%clk 0:02:57.5]} 3. Bxf6 {[%clk 0:02:56.5]} 3... gxf6 {[%clk
0:02:58.4]} 4. d5 {[%clk 0:02:57.3]} 4... Qb6 {[%clk 0:02:58.2]} 5. Qc1 {[%clk
0:02:57.5]} 5... d6 {[%clk 0:02:57.8]} 6. c3 {[%clk 0:02:45.8]} 6... h5 {[%clk
0:02:57.5]} 7. h4 {[%clk 0:02:43.3]} 7... Bf5 {[%clk 0:02:55.8]} 8. Na3 {[%clk
0:02:39.6]} 8... Nd7 {[%clk 0:02:52.4]} 9. e3 {[%clk 0:02:28.6]} 9... Ne5 {[%clk
0:02:42.7]} 10. Nc4 {[%clk 0:02:26.2]} 10... Qc7 {[%clk 0:02:42.1]} 11. Nxe5
{[%clk 0:02:20.4]} 11... fxe5 {[%clk 0:02:41.5]} 12. Bb5+ {[%clk 0:02:20.1]}
12... Kd8 {[%clk 0:02:39]} 13. Ne2 {[%clk 0:02:18.3]} 13... a6 {[%clk
0:02:37.8]} 14. Ba4 {[%clk 0:02:18.4]} 14... b5 {[%clk 0:02:36.2]} 15. Bc2
{[%clk 0:02:18.4]} 15... Bg4 {[%clk 0:02:26.2]} 16. Ng3 {[%clk 0:02:14.5]} 16...
Qc8 {[%clk 0:02:06]} 17. a4 {[%clk 0:02:08.3]} 17... Bh6 {[%clk 0:01:56.5]} 18.
Bd1 {[%clk 0:01:55]} 18... f5 {[%clk 0:01:46.6]} 19. f3 {[%clk 0:01:22.7]} 19...
f4 {[%clk 0:01:45.4]} 20. fxg4 {[%clk 0:01:22.8]} 20... fxg3 {[%clk 0:01:43.8]}
21. g5 {[%clk 0:01:23.1]} 21... Bg7 {[%clk 0:01:43.1]} 22. e4 {[%clk 0:01:21]}
22... Rf8 {[%clk 0:01:34.1]} 23. Rf1 {[%clk 0:01:12.3]} 23... Rxf1+ {[%clk
0:01:19]} 24. Kxf1 {[%clk 0:01:13.2]} 24... Kc7 {[%clk 0:01:16.4]} 25. axb5
{[%clk 0:01:04.4]} 25... axb5 {[%clk 0:01:15.5]} 26. Rxa8 {[%clk 0:01:03.3]}
26... Qxa8 {[%clk 0:01:15.1]} 27. Bxh5 {[%clk 0:01:03.4]} 27... Qa2 {[%clk
0:00:50.8]} 28. Be2 {[%clk 0:00:59.3]} 28... Kb6 {[%clk 0:00:50.1]} 29. h5
{[%clk 0:00:57.7]} 29... Qa4 {[%clk 0:00:49]} 30. Qb1 {[%clk 0:00:37.5]} 30...
Qa8 {[%clk 0:00:40.6]} 31. h6 {[%clk 0:00:36]} 31... Bh8 {[%clk 0:00:30.7]} 32.
Qd3 {[%clk 0:00:35.6]} 32... c4 {[%clk 0:00:28.1]} 33. Qxg3 {[%clk 0:00:33]}
33... Qa1+ {[%clk 0:00:27.4]} 34. Qe1 {[%clk 0:00:32.6]} 34... Qxb2 {[%clk
0:00:27]} 35. g6 {[%clk 0:00:32]} 35... b4 {[%clk 0:00:22.9]} 36. g7 {[%clk
0:00:30.8]} 36... Bxg7 {[%clk 0:00:22.8]} 37. hxg7 {[%clk 0:00:30.8]} 37... bxc3
{[%clk 0:00:23.7]} 38. g8=Q {[%clk 0:00:30.8]} 1-0

[Event "*** Titled Tuesday Blitz"]
[Site "Chess.com"]
[Date "2020.10.20"]
[Round "9"]
[White "Carnivoras"]
[Black "chesstrainer2042"]
[Result "1-0"]
[WhiteElo "2639"]
[BlackElo "2467"]
[TimeControl "180+1"]
[EndTime "11:47:36 PDT"]
[Termination "Carnivoras won by resignation"]

1. d4 {[%clk 0:02:59.1]} 1... d5 {[%clk 0:02:59.6]} 2. c4 {[%clk 0:02:58.9]}
2... c6 {[%clk 0:03:00.2]} 3. Nf3 {[%clk 0:02:58.5]} 3... Nf6 {[%clk 0:03:00.6]}
4. Nc3 {[%clk 0:02:58.2]} 4... e6 {[%clk 0:03:01.3]} 5. e3 {[%clk 0:02:57.3]}
5... Nbd7 {[%clk 0:03:00.9]} 6. Qc2 {[%clk 0:02:53.8]} 6... Bd6 {[%clk
0:02:59.8]} 7. b3 {[%clk 0:02:53.8]} 7... O-O {[%clk 0:02:49.5]} 8. Bb2 {[%clk
0:02:52.4]} 8... e5 {[%clk 0:02:49.8]} 9. cxd5 {[%clk 0:02:41.4]} 9... cxd5
{[%clk 0:02:48.4]} 10. dxe5 {[%clk 0:02:41.3]} 10... Nxe5 {[%clk 0:02:48.1]} 11.
Be2 {[%clk 0:02:41.9]} 11... Bg4 {[%clk 0:02:31.6]} 12. Nxe5 {[%clk 0:02:20.6]}
12... Bxe5 {[%clk 0:02:31.4]} 13. Bxg4 {[%clk 0:01:58.6]} 13... Nxg4 {[%clk
0:02:29.6]} 14. h3 {[%clk 0:01:59.2]} 14... Nf6 {[%clk 0:02:01.6]} 15. O-O
{[%clk 0:01:52]} 15... Rc8 {[%clk 0:02:01.3]} 16. Qd3 {[%clk 0:01:43.4]} 16...
Qa5 {[%clk 0:01:45.6]} 17. Rac1 {[%clk 0:01:05.6]} 17... Rfd8 {[%clk 0:01:24.2]}
18. a3 {[%clk 0:00:52.4]} 18... d4 {[%clk 0:00:51.5]} 19. exd4 {[%clk
0:00:44.7]} 19... Bxd4 {[%clk 0:00:50.8]} 20. b4 {[%clk 0:00:39.8]} 20... Qe5
{[%clk 0:00:46.8]} 21. Qf3 {[%clk 0:00:35.4]} 21... Rd7 {[%clk 0:00:25]} 22. Ne4
{[%clk 0:00:19.4]} 22... Re8 {[%clk 0:00:15.5]} 23. Bxd4 {[%clk 0:00:17.7]}
23... Rxd4 {[%clk 0:00:12]} 24. Nxf6+ {[%clk 0:00:17.7]} 24... Qxf6 {[%clk
0:00:12]} 25. Qxb7 {[%clk 0:00:18.3]} 25... h5 {[%clk 0:00:10.9]} 26. Qxa7
{[%clk 0:00:18.1]} 26... Rd2 {[%clk 0:00:09.9]} 27. Rc3 {[%clk 0:00:17.3]} 27...
Ree2 {[%clk 0:00:09.2]} 28. Rf3 {[%clk 0:00:17.1]} 28... Qg5 {[%clk 0:00:08.1]}
29. Qxf7+ {[%clk 0:00:13.8]} 29... Kh7 {[%clk 0:00:08.2]} 30. Rf5 {[%clk
0:00:14.2]} 30... Qh6 {[%clk 0:00:05.7]} 31. Rxh5 {[%clk 0:00:13.7]} 1-0

[Event "*** Titled Tuesday Blitz"]
[Site "Chess.com"]
[Date "2020.10.20"]
[Round "9"]
[White "HanSchut"]
[Black "Nara_Kh"]
[Result "0-1"]
[WhiteElo "2256"]
[BlackElo "2381"]
[TimeControl "180+1"]
[EndTime "11:47:36 PDT"]
[Termination "Nara_Kh won by checkmate"]

1. e4 {[%clk 0:03:00.9]} 1... c5 {[%clk 0:02:59.2]} 2. Nf3 {[%clk 0:02:58.4]}
2... d6 {[%clk 0:02:59.1]} 3. d4 {[%clk 0:02:58.8]} 3... Nf6 {[%clk 0:02:59]} 4.
dxc5 {[%clk 0:02:57.5]} 4... Nxe4 {[%clk 0:02:57.7]} 5. cxd6 {[%clk 0:02:57.8]}
5... Nc6 {[%clk 0:02:57]} 6. Bf4 {[%clk 0:02:47.3]} 6... Qb6 {[%clk 0:02:46.4]}
7. Be3 {[%clk 0:02:24.8]} 7... Qxb2 {[%clk 0:02:44.5]} 8. Nbd2 {[%clk
0:02:25.2]} 8... Nb4 {[%clk 0:02:10.3]} 9. Bb5+ {[%clk 0:02:00.7]} 9... Bd7
{[%clk 0:01:58.2]} 10. Bxd7+ {[%clk 0:02:00.1]} 10... Kxd7 {[%clk 0:01:58.3]}
11. O-O {[%clk 0:01:55.3]} 11... Nc3 {[%clk 0:01:52.8]} 12. Ne5+ {[%clk
0:01:41.2]} 12... Kd8 {[%clk 0:00:58.3]} 13. Nxf7+ {[%clk 0:01:23.7]} 13... Ke8
{[%clk 0:00:58]} 14. d7+ {[%clk 0:01:23.9]} 14... Kxf7 {[%clk 0:00:58]} 15. Qf3+
{[%clk 0:01:12.1]} 15... Kg8 {[%clk 0:00:54.8]} 16. Qxb7 {[%clk 0:01:00.4]}
16... Rd8 {[%clk 0:00:32.1]} 17. Nc4 {[%clk 0:01:00.1]} 17... Qxc2 {[%clk
0:00:17.5]} 18. Qxb4 {[%clk 0:00:54.3]} 18... e6 {[%clk 0:00:15.5]} 19. Bc5
{[%clk 0:00:34.4]} 19... Bxc5 {[%clk 0:00:12.8]} 20. Qxc5 {[%clk 0:00:34.5]}
20... h6 {[%clk 0:00:12.3]} 21. Qe7 {[%clk 0:00:29.1]} 21... Kh7 {[%clk
0:00:11.5]} 22. Qxe6 {[%clk 0:00:24.3]} 22... Rhf8 {[%clk 0:00:09.9]} 23. Rac1
{[%clk 0:00:20.6]} 23... Ne2+ {[%clk 0:00:09.6]} 24. Kh1 {[%clk 0:00:20.5]}
24... Nxc1 {[%clk 0:00:09.8]} 25. Ne5 {[%clk 0:00:18.6]} 25... Rxf2 {[%clk
0:00:06.9]} 26. Rxf2 {[%clk 0:00:11.4]} 26... Qxf2 {[%clk 0:00:07.8]} 27. Qg6+
{[%clk 0:00:11.5]} 27... Kg8 {[%clk 0:00:07.1]} 28. Qe6+ {[%clk 0:00:08]} 28...
Kh7 {[%clk 0:00:06.1]} 29. h3 {[%clk 0:00:08.5]} 29... Ne2 {[%clk 0:00:05.4]}
30. Qg6+ {[%clk 0:00:08]} 30... Kh8 {[%clk 0:00:05.8]} 31. Nf7+ {[%clk
0:00:07.9]} 31... Kg8 {[%clk 0:00:06.2]} 32. Nxd8 {[%clk 0:00:07.1]} 32... Qg1#
{[%clk 0:00:05.3]} 0-1

[Event "*** Titled Tuesday Blitz"]
[Site "Chess.com"]
[Date "2020.10.20"]
[Round "9"]
[White "Ty3oB"]
[Black "CM_rui"]
[Result "1-0"]
[WhiteElo "2266"]
[BlackElo "2344"]
[TimeControl "180+1"]
[EndTime "11:47:37 PDT"]
[Termination "Ty3oB won by resignation"]

1. e4 {[%clk 0:03:00.9]} 1... e5 {[%clk 0:03:00.1]} 2. Nf3 {[%clk 0:02:56.7]}
2... Nc6 {[%clk 0:03:00.4]} 3. d4 {[%clk 0:02:52.9]} 3... exd4 {[%clk
0:03:01.3]} 4. Nxd4 {[%clk 0:02:52.3]} 4... Bc5 {[%clk 0:03:01.4]} 5. Be3 {[%clk
0:02:51.8]} 5... Qf6 {[%clk 0:03:01.1]} 6. c3 {[%clk 0:02:51.9]} 6... Nge7
{[%clk 0:03:01.3]} 7. Bc4 {[%clk 0:02:51.3]} 7... O-O {[%clk 0:03:01.2]} 8. O-O
{[%clk 0:02:49.6]} 8... Ne5 {[%clk 0:03:01.6]} 9. Be2 {[%clk 0:02:49.2]} 9...
Qg6 {[%clk 0:02:40]} 10. Nd2 {[%clk 0:02:47.3]} 10... d5 {[%clk 0:02:35.7]} 11.
f4 {[%clk 0:02:46.4]} 11... N5c6 {[%clk 0:02:33.7]} 12. Bh5 {[%clk 0:02:28.6]}
12... Qh6 {[%clk 0:02:26.2]} 13. Qf3 {[%clk 0:02:16.7]} 13... dxe4 {[%clk
0:02:17.6]} 14. Nxe4 {[%clk 0:02:17.6]} 14... Bb6 {[%clk 0:02:16.1]} 15. f5
{[%clk 0:02:12.3]} 15... Ne5 {[%clk 0:01:55.5]} 16. Qh3 {[%clk 0:02:09.4]} 16...
Bxd4 {[%clk 0:01:33.1]} 17. cxd4 {[%clk 0:02:05.5]} 17... Qc6 {[%clk 0:01:33.6]}
18. Ng5 {[%clk 0:01:57.3]} 18... h6 {[%clk 0:01:17]} 19. dxe5 {[%clk 0:01:50.9]}
19... hxg5 {[%clk 0:01:16.7]} 20. Bxg5 {[%clk 0:01:42.4]} 20... Qc5+ {[%clk
0:01:16]} 21. Kh1 {[%clk 0:01:42.3]} 21... Nxf5 {[%clk 0:00:57.3]} 22. Rxf5
{[%clk 0:01:31.1]} 22... g6 {[%clk 0:00:44.6]} 23. Bxg6 {[%clk 0:01:11.1]} 23...
fxg6 {[%clk 0:00:41]} 24. Rxf8+ {[%clk 0:01:08.1]} 24... Qxf8 {[%clk 0:00:40]}
25. Qb3+ {[%clk 0:00:59.5]} 25... Kh7 {[%clk 0:00:36.5]} 26. Bf6 {[%clk
0:00:52.6]} 26... b6 {[%clk 0:00:33.3]} 27. Qf3 {[%clk 0:00:49.9]} 27... Bf5
{[%clk 0:00:26.4]} 28. Rf1 {[%clk 0:00:47.4]} 28... Re8 {[%clk 0:00:18.1]} 29.
Qg3 {[%clk 0:00:44.3]} 29... Qh6 {[%clk 0:00:12.9]} 30. Rf4 {[%clk 0:00:39.4]}
30... Kg8 {[%clk 0:00:03.3]} 31. h3 {[%clk 0:00:33.8]} 31... Kf7 {[%clk
0:00:03.3]} 32. Rh4 {[%clk 0:00:25.6]} 32... Qc1+ {[%clk 0:00:03.6]} 33. Kh2
{[%clk 0:00:25.4]} 33... Ke6 {[%clk 0:00:04.2]} 34. Qb3+ {[%clk 0:00:23.7]}
34... Kd7 {[%clk 0:00:04.3]} 35. Qb5+ {[%clk 0:00:21.8]} 35... c6 {[%clk
0:00:04.1]} 36. Rh7+ {[%clk 0:00:18.8]} 36... Ke6 {[%clk 0:00:01.6]} 37. Qb3+
{[%clk 0:00:18.8]} 1-0

[Event "*** Titled Tuesday Blitz"]
[Site "Chess.com"]
[Date "2020.10.20"]
[Round "9"]
[White "aisha_zakirova"]
[Black "ChronicUnhappiness"]
[Result "1-0"]
[WhiteElo "2171"]
[BlackElo "2250"]
[TimeControl "180+1"]
[EndTime "11:47:37 PDT"]
[Termination "aisha_zakirova won on time"]

1. d4 {[%clk 0:03:00.9]} 1... Nf6 {[%clk 0:02:59.5]} 2. c4 {[%clk 0:03:00.9]}
2... e6 {[%clk 0:02:59.5]} 3. Nf3 {[%clk 0:03:00.4]} 3... c5 {[%clk 0:02:58.3]}
4. d5 {[%clk 0:03:00]} 4... exd5 {[%clk 0:02:58.7]} 5. cxd5 {[%clk 0:03:00]}
5... d6 {[%clk 0:02:59.3]} 6. Nc3 {[%clk 0:02:59.1]} 6... g6 {[%clk 0:02:59.6]}
7. e4 {[%clk 0:02:59]} 7... Bg7 {[%clk 0:02:59.8]} 8. h3 {[%clk 0:02:58.2]} 8...
O-O {[%clk 0:03:00]} 9. Bd3 {[%clk 0:02:58.1]} 9... Nbd7 {[%clk 0:02:56.7]} 10.
O-O {[%clk 0:02:56.6]} 10... a6 {[%clk 0:02:56.3]} 11. a4 {[%clk 0:02:53.8]}
11... Re8 {[%clk 0:02:55.3]} 12. Re1 {[%clk 0:02:50.5]} 12... Ne5 {[%clk
0:02:54.1]} 13. Nxe5 {[%clk 0:02:49.8]} 13... Rxe5 {[%clk 0:02:53.8]} 14. Bf4
{[%clk 0:02:48.2]} 14... Nh5 {[%clk 0:02:53.4]} 15. Bh2 {[%clk 0:02:46.4]} 15...
Qh4 {[%clk 0:02:49.9]} 16. Ne2 {[%clk 0:02:36.7]} 16... Bxh3 {[%clk 0:02:39.9]}
17. gxh3 {[%clk 0:02:32.2]} 17... Rg5+ {[%clk 0:02:32.1]} 18. Ng3 {[%clk
0:02:25.8]} 18... Nxg3 {[%clk 0:01:34.2]} 19. Bxg3 {[%clk 0:02:24]} 19... Rxg3+
{[%clk 0:01:35.1]} 20. fxg3 {[%clk 0:02:22]} 20... Qxg3+ {[%clk 0:01:35]} 21.
Kf1 {[%clk 0:02:21.6]} 21... Bd4 {[%clk 0:00:58.1]} 22. Qc2 {[%clk 0:01:58.2]}
22... Re8 {[%clk 0:00:41.8]} 23. Ke2 {[%clk 0:01:49.2]} 23... f5 {[%clk
0:00:23.4]} 24. Ra3 {[%clk 0:01:37.2]} 24... fxe4 {[%clk 0:00:19.8]} 25. Bxe4
{[%clk 0:01:14.2]} 25... Qg2+ {[%clk 0:00:19.5]} 26. Kd1 {[%clk 0:01:09.5]}
26... Qg5 {[%clk 0:00:15.5]} 27. Qg2 {[%clk 0:00:54]} 27... Qe5 {[%clk
0:00:12.5]} 28. Re2 {[%clk 0:00:36.2]} 28... Rf8 {[%clk 0:00:04.3]} 29. Bxg6
{[%clk 0:00:30.6]} 29... Qf6 {[%clk 0:00:03.5]} 30. Bf5+ {[%clk 0:00:27.3]}
30... Kh8 {[%clk 0:00:03.7]} 31. Rf3 {[%clk 0:00:26.6]} 31... Bxb2 {[%clk
0:00:01.7]} 32. Bd3 {[%clk 0:00:18.8]} 1-0

[Event "*** Titled Tuesday Blitz"]
[Site "Chess.com"]
[Date "2020.10.20"]
[Round "9"]
[White "Ermito2020"]
[Black "BigAl"]
[Result "0-1"]
[WhiteElo "2630"]
[BlackElo "2491"]
[TimeControl "180+1"]
[EndTime "11:47:40 PDT"]
[Termination "BigAl won on time"]

1. e4 {[%clk 0:03:00.9]} 1... c6 {[%clk 0:03:00.2]} 2. d4 {[%clk 0:03:00.8]}
2... d5 {[%clk 0:03:00.9]} 3. e5 {[%clk 0:03:01.5]} 3... Bf5 {[%clk 0:03:01.2]}
4. Nf3 {[%clk 0:03:01.8]} 4... e6 {[%clk 0:03:01.2]} 5. Be2 {[%clk 0:03:02.4]}
5... Ne7 {[%clk 0:03:01.8]} 6. O-O {[%clk 0:03:02.5]} 6... Ng6 {[%clk
0:03:02.5]} 7. Be3 {[%clk 0:02:59.5]} 7... Nd7 {[%clk 0:03:02.6]} 8. Nbd2 {[%clk
0:02:59.3]} 8... f6 {[%clk 0:03:02.8]} 9. c4 {[%clk 0:02:59.6]} 9... fxe5 {[%clk
0:02:55.3]} 10. dxe5 {[%clk 0:02:58.7]} 10... Bc5 {[%clk 0:02:55.1]} 11. Bxc5
{[%clk 0:02:37.3]} 11... Nxc5 {[%clk 0:02:55.2]} 12. Nd4 {[%clk 0:02:37.9]}
12... Nxe5 {[%clk 0:02:26]} 13. Nxf5 {[%clk 0:02:32.9]} 13... exf5 {[%clk
0:02:26]} 14. Bh5+ {[%clk 0:02:29.7]} 14... g6 {[%clk 0:02:18]} 15. Re1 {[%clk
0:01:49.7]} 15... Nd3 {[%clk 0:02:17.1]} 16. Qe2 {[%clk 0:01:49.8]} 16... O-O
{[%clk 0:02:13.9]} 17. Rf1 {[%clk 0:01:15.4]} 17... Qg5 {[%clk 0:01:34.9]} 18.
Bf3 {[%clk 0:01:04.6]} 18... Rae8 {[%clk 0:01:33.8]} 19. cxd5 {[%clk 0:00:59.9]}
19... Nf4 {[%clk 0:01:32.8]} 20. Qd1 {[%clk 0:00:56.6]} 20... Ned3 {[%clk
0:01:20.3]} 21. h4 {[%clk 0:00:35.4]} 21... Qxh4 {[%clk 0:00:53.9]} 22. dxc6
{[%clk 0:00:35.3]} 22... Qg5 {[%clk 0:00:47.3]} 23. cxb7 {[%clk 0:00:27]} 23...
Nh3+ {[%clk 0:00:44.3]} 24. Kh2 {[%clk 0:00:27.5]} 24... Nhxf2 {[%clk
0:00:43.2]} 25. Qb3+ {[%clk 0:00:26.5]} 25... Kg7 {[%clk 0:00:37.4]} 26. Qc3+
{[%clk 0:00:26.4]} 26... Kh6 {[%clk 0:00:35.5]} 27. Kg1 {[%clk 0:00:17.2]} 27...
Qe3 {[%clk 0:00:26.9]} 28. Kh2 {[%clk 0:00:17.4]} 28... f4 {[%clk 0:00:17.5]}
29. a4 {[%clk 0:00:14]} 29... Rf5 {[%clk 0:00:17.3]} 30. a5 {[%clk 0:00:11.5]}
30... Ree5 {[%clk 0:00:10]} 31. Qxe5 {[%clk 0:00:09.3]} 31... Qxe5 {[%clk
0:00:09.2]} 32. Nc4 {[%clk 0:00:09.5]} 32... Rh5+ {[%clk 0:00:06.3]} 33. Bxh5
{[%clk 0:00:08.7]} 33... Qxh5+ {[%clk 0:00:06.2]} 0-1

[Event "*** Titled Tuesday Blitz"]
[Site "Chess.com"]
[Date "2020.10.20"]
[Round "9"]
[White "grunbergmihai"]
[Black "MarkkuH"]
[Result "1/2-1/2"]
[WhiteElo "2503"]
[BlackElo "2386"]
[TimeControl "180+1"]
[EndTime "11:47:40 PDT"]
[Termination "Game drawn by agreement"]

1. Nf3 {[%clk 0:03:00.9]} 1... Nf6 {[%clk 0:02:59.6]} 2. g3 {[%clk 0:02:58.8]}
2... g6 {[%clk 0:02:59.8]} 3. Bg2 {[%clk 0:02:59.7]} 3... Bg7 {[%clk 0:03:00.3]}
4. O-O {[%clk 0:03:00.6]} 4... O-O {[%clk 0:03:00.9]} 5. c4 {[%clk 0:03:01.5]}
5... d6 {[%clk 0:03:01.1]} 6. d4 {[%clk 0:03:01.4]} 6... Nc6 {[%clk 0:03:01.3]}
7. Nc3 {[%clk 0:03:01.4]} 7... Bf5 {[%clk 0:03:01.8]} 8. Re1 {[%clk 0:03:01.1]}
8... Ne4 {[%clk 0:03:01.7]} 9. Nxe4 {[%clk 0:02:53.3]} 9... Bxe4 {[%clk
0:03:01.8]} 10. e3 {[%clk 0:02:50.5]} 10... Nb4 {[%clk 0:02:59.7]} 11. Nh4
{[%clk 0:02:38.7]} 11... Bxg2 {[%clk 0:02:24.5]} 12. Nxg2 {[%clk 0:02:37.8]}
12... c5 {[%clk 0:02:24.4]} 13. d5 {[%clk 0:02:26.6]} 13... e5 {[%clk
0:02:14.2]} 14. dxe6 {[%clk 0:02:24.9]} 14... fxe6 {[%clk 0:02:13.6]} 15. Qb3
{[%clk 0:02:22]} 15... Qe7 {[%clk 0:02:09.5]} 16. a3 {[%clk 0:02:13.6]} 16...
Nc6 {[%clk 0:02:09.2]} 17. f4 {[%clk 0:02:09.3]} 17... Kh8 {[%clk 0:02:05.1]}
18. Bd2 {[%clk 0:02:08.6]} 18... Rad8 {[%clk 0:01:58]} 19. Bc3 {[%clk
0:02:07.8]} 19... Bxc3 {[%clk 0:01:57.2]} 20. Qxc3+ {[%clk 0:02:07.5]} 20... Qg7
{[%clk 0:01:56.5]} 21. Rac1 {[%clk 0:01:59.6]} 21... Qxc3 {[%clk 0:01:52.3]} 22.
Rxc3 {[%clk 0:01:59.4]} 22... Kg7 {[%clk 0:01:46.4]} 23. Rd1 {[%clk 0:01:54.5]}
23... Rf7 {[%clk 0:01:43.7]} 24. Rcd3 {[%clk 0:01:53.3]} 24... Rfd7 {[%clk
0:01:43.5]} 25. Nh4 {[%clk 0:01:50.2]} 25... Kf6 {[%clk 0:01:35.4]} 26. Nf3
{[%clk 0:01:49.8]} 26... d5 {[%clk 0:01:28.9]} 27. Kf2 {[%clk 0:01:38.4]} 27...
h6 {[%clk 0:01:24.4]} 28. g4 {[%clk 0:01:35.1]} 28... Ke7 {[%clk 0:01:18.3]} 29.
cxd5 {[%clk 0:01:27.2]} 29... exd5 {[%clk 0:01:17]} 30. h4 {[%clk 0:01:23.7]}
30... b5 {[%clk 0:00:59.8]} 31. g5 {[%clk 0:01:19.3]} 31... h5 {[%clk
0:00:52.2]} 32. e4 {[%clk 0:01:12.9]} 32... dxe4 {[%clk 0:00:46.6]} 33. Rxd7+
{[%clk 0:01:12.5]} 33... Rxd7 {[%clk 0:00:47.1]} 34. Rxd7+ {[%clk 0:01:12.9]}
34... Kxd7 {[%clk 0:00:47.7]} 35. Nd2 {[%clk 0:01:13]} 35... Ke6 {[%clk
0:00:40.4]} 36. Nxe4 {[%clk 0:01:12.5]} 36... Kd5 {[%clk 0:00:40.3]} 37. Ke3
{[%clk 0:01:08]} 37... c4 {[%clk 0:00:37.4]} 38. f5 {[%clk 0:01:03.5]} 38...
gxf5 {[%clk 0:00:34.3]} 39. Nf6+ {[%clk 0:01:03.6]} 39... Ke5 {[%clk 0:00:33.1]}
40. Nxh5 {[%clk 0:01:04.5]} 40... Ne7 {[%clk 0:00:29.2]} 41. Nf4 {[%clk
0:01:02.2]} 41... a5 {[%clk 0:00:26.3]} 42. g6 {[%clk 0:00:58.4]} 42... Kf6
{[%clk 0:00:23.9]} 43. h5 {[%clk 0:00:57.3]} 43... b4 {[%clk 0:00:22.2]} 44.
axb4 {[%clk 0:00:51]} 44... axb4 {[%clk 0:00:23.1]} 45. Kd4 {[%clk 0:00:49.8]}
45... c3 {[%clk 0:00:18.3]} 46. bxc3 {[%clk 0:00:49.6]} 46... bxc3 {[%clk
0:00:18.3]} 47. Kxc3 {[%clk 0:00:48.7]} 47... Kg5 {[%clk 0:00:18.9]} 48. g7
{[%clk 0:00:41.7]} 48... Ng8 {[%clk 0:00:18.8]} 1/2-1/2

[Event "*** Titled Tuesday Blitz"]
[Site "Chess.com"]
[Date "2020.10.20"]
[Round "9"]
[White "Gabrielian_Artur"]
[Black "GOGIEFF"]
[Result "1-0"]
[WhiteElo "2813"]
[BlackElo "2877"]
[TimeControl "180+1"]
[EndTime "11:47:42 PDT"]
[Termination "Gabrielian_Artur won by resignation"]

1. e4 {[%clk 0:03:00.9]} 1... c5 {[%clk 0:02:57.9]} 2. Nc3 {[%clk 0:03:00.7]}
2... d6 {[%clk 0:02:56.9]} 3. d4 {[%clk 0:03:00.5]} 3... cxd4 {[%clk 0:02:56.5]}
4. Qxd4 {[%clk 0:03:00.7]} 4... Nc6 {[%clk 0:02:54.8]} 5. Qd2 {[%clk 0:03:00.7]}
5... g6 {[%clk 0:02:51.3]} 6. b3 {[%clk 0:03:00.3]} 6... Bh6 {[%clk 0:02:51.3]}
7. f4 {[%clk 0:03:00.1]} 7... e5 {[%clk 0:02:51.5]} 8. g3 {[%clk 0:02:58.4]}
8... Nf6 {[%clk 0:02:37.3]} 9. Bb2 {[%clk 0:02:58]} 9... exf4 {[%clk 0:02:19.9]}
10. O-O-O {[%clk 0:02:51.7]} 10... O-O {[%clk 0:02:11.5]} 11. Kb1 {[%clk
0:02:48.6]} 11... Nh5 {[%clk 0:02:08.3]} 12. Be2 {[%clk 0:02:32.5]} 12... fxg3
{[%clk 0:01:44.5]} 13. Qxh6 {[%clk 0:02:23.9]} 13... g2 {[%clk 0:01:44.8]} 14.
Nf3 {[%clk 0:02:06.9]} 14... gxh1=Q {[%clk 0:01:44.4]} 15. Rxh1 {[%clk
0:02:06.9]} 15... f6 {[%clk 0:01:30.1]} 16. Rg1 {[%clk 0:01:55]} 16... Ng7
{[%clk 0:01:22.6]} 17. Nd5 {[%clk 0:01:48.9]} 17... Ne5 {[%clk 0:01:10.5]} 18.
h4 {[%clk 0:01:14.1]} 18... Be6 {[%clk 0:00:49.8]} 19. h5 {[%clk 0:00:57.8]}
19... Bxd5 {[%clk 0:00:49.9]} 20. hxg6 {[%clk 0:00:49.4]} 20... Nxg6 {[%clk
0:00:46]} 21. Ng5 {[%clk 0:00:43.4]} 21... Rf7 {[%clk 0:00:39.7]} 22. Qxh7+
{[%clk 0:00:31.6]} 22... Kf8 {[%clk 0:00:40]} 23. Nxf7 {[%clk 0:00:15.1]} 23...
Bxf7 {[%clk 0:00:38.5]} 24. Bc4 {[%clk 0:00:12.9]} 24... Qe7 {[%clk 0:00:23.6]}
25. Bxf7 {[%clk 0:00:12.3]} 25... Qxf7 {[%clk 0:00:24.5]} 26. Rxg6 {[%clk
0:00:12.3]} 26... Ne8 {[%clk 0:00:25.2]} 27. Qh6+ {[%clk 0:00:10.6]} 27... Ke7
{[%clk 0:00:25.1]} 28. Bxf6+ {[%clk 0:00:11.1]} 28... Kd7 {[%clk 0:00:25.6]} 29.
Bc3 {[%clk 0:00:07.6]} 29... Rc8 {[%clk 0:00:25.1]} 30. Kb2 {[%clk 0:00:07.5]}
30... Kc7 {[%clk 0:00:23.9]} 31. Rg3 {[%clk 0:00:05.5]} 31... Kb8 {[%clk
0:00:23.7]} 32. Rd3 {[%clk 0:00:05.7]} 32... Qe7 {[%clk 0:00:22.4]} 33. Qe3
{[%clk 0:00:05.7]} 33... a6 {[%clk 0:00:21.4]} 34. a4 {[%clk 0:00:05.7]} 34...
Rc6 {[%clk 0:00:21.6]} 35. e5 {[%clk 0:00:06]} 35... dxe5 {[%clk 0:00:20.6]} 36.
Bxe5+ {[%clk 0:00:05.7]} 36... Nc7 {[%clk 0:00:21.3]} 37. Qd4 {[%clk 0:00:05.6]}
37... Qc5 {[%clk 0:00:19.1]} 38. Qd8+ {[%clk 0:00:05.3]} 38... Ka7 {[%clk
0:00:19]} 39. Bd4 {[%clk 0:00:06]} 1-0